bitfinex/quotes_SOLUSD_20251030
["timestamp","ask_amount","ask_price","bid_price","bid_amount"]
[1761791001222,27.98764027,196.87,196.83,3.34695814]
[1761791001425,123.992,196.86,196.84,3.34569114]
[1761791001720,123.992,196.86,196.79,16.62852609]
[1761791001721,103.4,196.93,196.85,3.34569114]
[1761791001927,7.39564027,196.91,196.86,4.04444841]
[1761791002121,20.592,196.88,196.87,3.34444841]
[1761791002825,20.592,196.89,196.87,3.34444841]
[1761791003026,20.592,196.88,196.87,0.66]
[1761791003228,20.592,196.88,196.87,4.00213098]
[1761791003428,7.39564027,196.91,196.87,4.00213098]
[1761791003602,7.39564027,196.91,196.88,3.34213098]
[1761791003801,7.39564027,196.91,196.87,0.66]
[1761791003997,123.992,196.92,196.88,3.34144223]
[1761791004300,131.38764027,196.92,196.87,0.66]
[1761791004628,7.39564027,196.9,196.85,0.66]
[1761791004814,7.39564027,196.9,196.86,3.34008355]
[1761791005004,7.39564027,196.9,196.87,3.34008355]
[1761791005207,7.39564027,196.9,196.88,3.34008355]
[1761791005407,7.39564027,196.9,196.85,0.66]
[1761791005614,7.39564027,196.9,196.86,3.3399656]
[1761791005810,7.39564027,196.9,196.87,3.3399656]
[1761791006016,7.39564027,196.9,196.88,3.3399656]
[1761791006303,7.39564027,196.9,196.89,3.3399656]
[1761791006697,123.992,196.92,196.89,3.3399656]
[1761791006698,7.39564027,196.91,196.89,3.3399656]
[1761791006904,123.992,196.92,196.9,3.99983458]
[1761791007213,123.992,196.92,196.9,0.66]
[1761791007414,123.992,196.92,196.88,0.66]
[1761791007625,123.992,196.92,196.89,3.33973437]
[1761791007626,20.592,196.9,196.89,3.33973437]
[1761791008433,20.592,196.9,196.89,3.99973437]
[1761791009407,0.1,196.94,196.89,16.47413831]
[1761791009605,0.1,196.94,196.92,7.39564027]
[1761791009833,0.1,196.94,196.93,10.73537464]
[1761791010009,0.1,196.94,196.93,11.39537464]
[1761791010344,0.1,196.94,196.93,16.61548268]
[1761791011414,0.1,196.94,196.93,3.33973437]
[1761791011619,0.1,196.94,196.86,8.61589205]
[1761791011620,28.08764027,196.94,196.86,8.05564027]
[1761791011825,28.08764027,196.94,196.87,3.33671774]
[1761791012012,28.08764027,196.94,196.88,3.33671774]
[1761791012013,33.16533575,196.94,196.88,3.33671774]
[1761791012212,33.16533575,196.94,196.86,8.05564027]
[1761791012409,33.16533575,196.94,196.87,3.3366527]
[1761791012636,28.08764027,196.94,196.88,3.3366527]
[1761791012826,28.08764027,196.94,196.86,8.05564027]
[1761791013135,28.08764027,196.94,196.87,3.3358884]
[1761791013335,28.08764027,196.94,196.88,3.3358884]
[1761791013536,28.08764027,196.94,196.87,0.66]
[1761791013845,28.08764027,196.94,196.88,10.73236447]
[1761791014034,28.08764027,196.94,196.89,3.3367242]
[1761791014215,28.08764027,196.94,196.9,3.3367242]
[1761791014537,28.08764027,196.94,196.86,5.07971633]
[1761791014538,7.39564027,196.93,196.89,0.66]
[1761791014720,20.592,196.91,196.9,3.33608072]
[1761791015239,20.692,196.94,196.85,0.66]
[1761791015438,7.39564027,196.9,196.86,3.99677079]
[1761791015740,25.76974339,196.94,196.87,3.33677079]
[1761791015741,7.39564027,196.91,196.87,3.33677079]
[1761791015946,7.39564027,196.91,196.88,3.33677079]
[1761791016235,7.39564027,196.91,196.86,0.66]
[1761791016431,7.39564027,196.91,196.87,3.33623211]
[1761791016636,7.39564027,196.91,196.86,0.66]
[1761791016637,7.39564027,196.91,196.88,3.33623211]
[1761791016827,7.39564027,196.91,196.86,0.66]
[1761791017140,0.1,196.94,196.91,0.14216157]
[1761791017443,0.1,197.0,196.93,7.39564027]
[1761791017735,0.1,197.0,196.92,3.99623638]
[1761791017736,0.1,197.0,196.95,7.39564027]
[1761791017926,20.592,196.99,196.96,3.99623638]
[1761791018121,20.592,196.99,196.97,3.33623638]
[1761791018315,0.1,197.0,196.98,3.33623638]
[1761791018509,7.49564027,197.0,196.95,0.66]
[1761791018718,7.49564027,197.0,196.96,3.32870042]
[1761791019019,0.1,197.0,196.95,0.66]
[1761791019321,20.592,196.99,196.96,3.32942501]
[1761791019525,20.592,196.99,196.92,0.66]
[1761791019526,7.39564027,196.97,196.92,0.66]
[1761791019732,7.39564027,196.95,196.92,0.66]
[1761791020125,20.592,196.97,196.92,0.66]
[1761791020329,7.39564027,196.96,196.93,3.32925801]
[1761791020541,7.39564027,196.94,196.92,0.66]
[1761791020732,20.592,196.97,196.93,3.32911948]
[1761791020933,20.592,196.97,196.9,0.66]
[1761791021222,20.592,196.97,196.91,3.32899282]
[1761791021413,20.592,196.97,196.92,3.32899282]
[1761791021618,20.592,196.97,196.93,3.32899282]
[1761791021817,20.592,196.97,196.9,0.66]
[1761791022021,20.592,196.97,196.91,3.32840194]
[1761791022235,7.39564027,196.94,196.92,3.32840194]
[1761791022449,20.592,196.97,196.93,3.32840194]
[1761791022740,7.39564027,196.94,196.9,0.66]
[1761791022955,0.1,196.96,196.91,3.32922542]
[1761791023121,27.98764027,196.92,196.85,10.42366796]
[1761791023320,7.39564027,196.86,196.85,10.42366796]
[1761791023517,7.39564027,196.86,196.85,13.75741992]
[1761791023742,20.592,196.92,196.85,13.75741992]
[1761791023964,7.39564027,196.87,196.86,3.99300378]
[1761791025555,7.39564027,196.88,196.86,3.99300378]
[1761791025764,20.592,196.92,196.87,3.33300378]
[1761791025928,7.39564027,196.88,196.87,3.33300378]
[1761791026131,7.39564027,196.88,196.87,3.99300378]
[1761791026728,7.39564027,196.88,196.87,3.33300378]
[1761791027054,7.39564027,196.88,196.85,9.76366796]
[1761791027229,7.39564027,196.86,196.85,9.76366796]
[1761791027434,7.39564027,196.86,196.85,13.09907484]
[1761791027647,7.39564027,196.86,196.85,9.76366796]
[1761791028542,28.08764027,196.86,196.85,9.76366796]
[1761791028729,27.98764027,196.86,196.85,9.76366796]
[1761791031371,5.20171479,196.96,196.85,9.76366796]
[1761791031372,7.39564027,196.88,196.85,13.76370042]
[1761791031667,7.39564027,196.86,196.85,9.76366796]
[1761791033131,103.4,196.94,196.85,21.20939018]
[1761791033330,7.39564027,196.91,196.86,4.05008195]
[1761791033538,7.39564027,196.92,196.87,4.05008195]
[1761791033753,7.39564027,196.91,196.88,3.34008195]
[1761791033953,7.39564027,196.9,196.89,3.34008195]
[1761791035451,7.39564027,196.91,196.89,4.05008195]
[1761791035634,7.39564027,196.91,196.9,3.34008195]
[1761791035829,7.39564027,196.92,196.9,4.05008195]
[1761791036053,7.39564027,196.92,196.87,5.07940723]
[1761791036260,7.39564027,196.92,196.91,0.71]
[1761791036470,123.992,196.93,196.91,3.33857834]
[1761791036646,7.39564027,196.92,196.88,0.71]
[1761791036843,7.39564027,196.92,196.89,3.33880551]
[1761791037162,7.39564027,196.92,196.9,3.33880551]
[1761791037353,7.39564027,196.92,196.91,3.33880551]
[1761791038250,7.39564027,196.93,196.91,4.04880551]
[1761791038445,7.39564027,196.94,196.92,4.04880551]
[1761791038760,7.39564027,196.95,196.93,4.04821095]
[1761791038960,7.39564027,196.95,196.93,0.71]
[1761791039968,7.39564027,196.94,196.91,0.71]
[1761791040148,7.39564027,196.94,196.92,3.33921252]
[1761791040461,20.592,196.95,196.93,10.73485279]
[1761791040759,103.4,196.98,196.94,3.33921252]
[1761791040941,103.4,196.98,196.91,8.10564027]
[1761791041146,110.79564027,196.98,196.92,4.04715662]
[1761791041456,110.79564027,196.98,196.93,3.33715662]
[1761791041661,110.79564027,196.98,196.94,3.33715662]
[1761791041862,110.79564027,196.98,196.95,3.33715662]
[1761791042047,7.39564027,196.97,196.96,3.33715662]
[1761791042667,110.79564027,196.98,196.96,3.33715662]
[1761791042874,110.79564027,196.98,196.97,3.33715662]
[1761791043170,0.1,197.0,196.97,3.33715662]
[1761791043466,0.1,197.0,196.98,11.44279689]
[1761791043647,0.1,197.0,196.99,11.44279689]
[1761791044054,0.1,197.0,196.99,16.5191967]
[1761791044365,0.1,197.0,196.99,11.44279689]
[1761791044658,0.1,197.0,196.99,3.33715662]
[1761791044861,0.1,197.0,196.94,9.25232624]
[1761791044862,7.49564027,197.0,196.94,0.71]
[1761791045067,7.39564027,196.98,196.95,4.0425637]
[1761791045245,7.39564027,196.99,196.96,3.3325637]
[1761791045455,7.39564027,196.99,196.97,3.3325637]
[1761791045662,7.49564027,197.0,196.97,4.0425637]
[1761791045858,7.49564027,197.0,196.98,3.3325637]
[1761791046057,0.1,197.0,196.94,7.39564027]
[1761791046359,0.1,197.0,196.98,0.71]
[1761791046360,7.49564027,197.0,196.98,0.71]
[1761791046563,7.49564027,197.0,196.95,0.71]
[1761791046564,7.39564027,196.99,196.95,0.71]
[1761791046774,7.39564027,196.99,196.96,3.33184063]
[1761791046959,20.692,197.0,196.97,3.33184063]
[1761791047145,7.39564027,196.99,196.95,0.71]
[1761791047345,7.39564027,196.99,196.96,3.3324946]
[1761791047564,7.39564027,196.99,196.97,3.3324946]
[1761791047861,20.692,197.0,196.95,0.71]
[1761791047862,7.39564027,196.98,196.95,0.71]
[1761791048080,7.39564027,196.97,196.96,3.33275688]
[1761791048454,7.39564027,196.97,196.91,0.71]
[1761791048650,7.39564027,196.97,196.92,4.04385758]
[1761791048854,7.39564027,196.97,196.93,4.04385758]
[1761791049166,20.592,196.99,196.94,3.33385758]
[1761791049167,27.98764027,196.99,196.94,3.33385758]
[1761791049478,27.98764027,196.99,196.95,3.33385758]
[1761791049479,20.592,196.99,196.95,3.33385758]
[1761791049785,20.592,196.99,196.96,3.33385758]
[1761791049996,0.1,197.0,196.97,3.33385758]
[1761791050158,0.1,197.0,196.98,3.33385758]
[1761791050492,0.1,197.0,196.99,3.33385758]
[1761791050779,0.1,197.0,196.99,4.04385758]
[1761791051560,0.1,197.0,196.99,11.58165942]
[1761791052353,0.1,197.0,196.99,16.65805923]
[1761791054068,0.1,197.0,196.99,11.58165942]
[1761791054267,0.1,197.0,196.99,16.65805923]
[1761791055257,0.1,197.0,196.99,9.26241896]
[1761791055575,0.1,197.0,196.99,16.65805923]
[1761791056863,0.1,197.03,197.01,0.14216157]
[1761791057182,0.1,197.06,197.03,9.93098926]
[1761791057381,0.1,197.06,197.05,5.09423661]
[1761791057686,0.1,197.06,197.05,8.42809419]
[1761791057870,0.1,197.06,197.05,9.11809419]
[1761791058182,0.1,197.06,197.05,4.02385758]
[1761791058390,0.1,197.06,197.05,3.33385758]
[1761791058881,0.1,197.06,197.03,0.69]
[1761791059082,0.1,197.06,197.04,3.31679553]
[1761791059272,0.1,197.06,197.03,0.69]
[1761791059467,0.1,197.06,197.04,3.31609155]
[1761791059781,0.1,197.06,197.03,5.76529261]
[1761791059982,0.1,197.06,197.04,4.00600361]
[1761791060167,0.1,197.06,197.03,0.69]
[1761791060397,0.1,197.06,197.04,8.26793941]
[1761791060571,0.1,197.06,197.05,4.0042398]
[1761791061162,0.1,197.06,197.05,9.07909389]
[1761791061366,0.1,197.06,197.05,4.0042398]
[1761791062091,0.1,197.06,197.05,9.07909389]
[1761791063689,0.1,197.06,197.03,4.95207504]
[1761791063865,0.1,197.06,197.04,3.31416414]
[1761791064062,0.1,197.06,197.02,0.67]
[1761791064285,0.1,197.06,197.02,5.62207504]
[1761791064587,0.1,197.06,197.04,4.95207504]
[1761791065089,0.1,197.06,197.05,0.67]
[1761791065584,0.1,197.06,197.05,14.00942947]
[1761791068081,0.1,197.06,197.05,14.15159104]
[1761791071391,0.1,197.06,197.05,9.05735443]
[1761791071888,0.1,197.06,197.05,14.00942947]
[1761791072276,0.1,197.06,197.05,14.15159104]
[1761791072990,0.1,197.06,197.05,9.07673695]
[1761791073193,0.1,197.06,197.05,3.31250034]
[1761791073497,0.1,197.06,197.05,14.00942947]
[1761791073674,0.1,197.06,197.05,14.15159104]
[1761791073862,0.1,197.12,197.06,9.93098926]
[1761791074062,0.1,197.12,197.11,4.95207504]
[1761791074490,0.1,197.12,197.11,5.62207504]
[1761791074677,0.1,197.12,197.11,8.93153411]
[1761791074887,0.1,197.12,197.11,3.97945907]
[1761791075072,0.1,197.12,197.07,0.67]
[1761791075434,0.1,197.12,197.08,5.96295984]
[1761791075567,0.1,197.12,197.09,8.3864967]
[1761791075769,0.1,197.12,197.09,5.74382414]
[1761791075964,0.1,197.12,197.1,3.31221114]
[1761791076289,0.1,197.12,197.09,5.74382414]
[1761791076599,0.1,197.12,197.1,3.313947]
[1761791076799,0.1,197.12,197.09,5.74382414]
[1761791076976,0.1,197.12,197.1,3.31408782]
[1761791077175,0.1,197.12,197.11,3.31678989]
[1761791077376,0.1,197.12,197.1,5.74351885]
[1761791077597,0.1,197.12,197.11,3.98661282]
[1761791078176,0.1,197.12,197.11,3.31661282]
[1761791078602,0.1,197.12,197.11,3.98661282]
[1761791078805,0.1,197.12,197.11,15.89788936]
[1761791078991,0.1,197.12,197.11,20.07271338]
[1761791079195,0.1,197.12,197.11,25.14602269]
[1761791079385,0.1,197.12,197.11,28.11329882]
[1761791079585,0.1,197.12,197.11,23.9384748]
[1761791079803,0.1,197.12,197.11,28.11329882]
[1761791079995,0.1,197.12,197.11,48.70529882]
[1761791080423,0.1,197.12,197.11,44.5304748]
[1761791081306,0.1,197.12,197.11,9.2020837]
[1761791081521,0.1,197.12,197.11,4.12877439]
[1761791081803,0.1,197.12,197.11,3.31661282]
[1761791082582,0.1,197.12,197.11,8.38992213]
[1761791082790,0.1,197.12,197.11,9.05992213]
[1761791084302,0.1,197.12,197.11,3.98661282]
[1761791084781,0.1,197.12,197.11,3.31661282]
[1761791084995,0.1,197.12,197.11,3.98661282]
[1761791085502,0.1,197.12,197.11,3.31661282]
[1761791086209,0.1,197.12,197.11,3.98661282]
[1761791086406,0.1,197.12,197.11,3.31661282]
[1761791086802,5.44756341,197.12,197.11,3.31661282]
[1761791088599,5.44756341,197.12,197.05,4.14646282]
[1761791088917,4.94756341,197.09,197.06,7.47445571]
[1761791089126,4.94756341,197.09,197.07,3.32799289]
[1761791089420,20.592,197.09,197.08,3.32799289]
[1761791089619,20.592,197.09,197.02,4.14646282]
[1761791089620,25.66582414,197.09,197.02,4.14646282]
[1761791089822,20.592,197.05,197.03,2.93054199]
[1761791090123,20.592,197.05,196.99,0.143693]
[1761791090521,4.94756341,197.01,196.99,0.143693]
[1761791091119,20.592,197.05,196.99,0.143693]
[1761791091294,4.94756341,197.02,196.99,0.143693]
[1761791091494,4.94756341,197.01,196.99,0.143693]
[1761791092906,4.94756341,197.0,196.99,0.143693]
[1761791093511,4.94756341,197.01,196.99,0.143693]
[1761791094335,4.94756341,197.0,196.99,0.143693]
[1761791095358,20.592,197.08,196.99,5.880011]
[1761791095512,0.1,197.12,197.04,4.94756341]
[1761791095513,103.4,197.11,197.04,4.94756341]
[1761791095843,4.94756341,197.09,197.03,4.94756341]
[1761791096137,123.992,197.11,197.04,4.94756341]
[1761791096315,4.94756341,197.09,197.03,0.66]
[1761791096632,108.34756341,197.11,197.06,4.94756341]
[1761791096818,103.4,197.11,197.06,4.94756341]
[1761791097125,0.1,197.12,197.09,4.94756341]
[1761791097327,0.1,197.12,197.07,0.66]
[1761791097328,5.04756341,197.12,197.07,0.66]
[1761791097827,0.1,197.12,197.07,10.68169037]
[1761791098133,0.1,197.12,197.08,4.94756341]
[1761791098438,0.1,197.12,197.08,5.60756341]
[1761791098638,0.1,197.12,197.09,5.60756341]
[1761791099526,0.1,197.12,197.09,0.66]
[1761791099846,0.1,197.12,197.1,0.66]
[1761791100547,0.1,197.12,197.11,4.94756341]
[1761791100707,0.1,197.12,197.11,5.60756341]
[1761791101654,0.1,197.12,197.04,4.14646282]
[1761791101655,20.592,197.09,197.04,4.14646282]
[1761791101808,4.94756341,197.06,197.05,3.33359139]
[1761791102004,4.94756341,197.07,197.05,3.33359139]
[1761791102324,4.94756341,197.07,197.06,3.33359139]
[1761791102813,20.592,197.06,197.0,4.14646282]
[1761791103011,4.94756341,197.04,197.01,3.33450048]
[1761791103211,4.94756341,197.04,197.02,3.33450048]
[1761791103434,4.94756341,197.04,197.03,3.33450048]
[1761791104051,10.02267506,197.04,197.03,3.33450048]
[1761791104253,30.61467506,197.04,196.99,0.143693]
[1761791104452,20.592,197.01,197.0,3.33431737]
[1761791104742,20.592,197.01,196.99,0.143693]
[1761791105429,9.78882769,197.0,196.99,0.143693]
[1761791105638,9.78882769,197.0,196.88,5.56643203]
[1761791105639,20.592,196.97,196.88,4.14646282]
[1761791105847,4.94756341,196.9,196.89,3.337105]
[1761791106213,4.94756341,196.91,196.89,3.337105]
[1761791106434,4.94756341,196.91,196.9,3.337105]
[1761791108333,5.0753538,197.04,196.9,14.02337456]
[1761791108534,9.78882769,197.07,196.93,4.94756341]
[1761791108535,4.94756341,196.99,196.93,4.94756341]
[1761791108731,4.94756341,196.99,196.94,8.28466841]
[1761791109047,4.94756341,197.02,196.96,4.94756341]
[1761791109212,4.94756341,197.02,196.97,3.337105]
[1761791109412,4.94756341,197.02,196.96,5.60756341]
[1761791109619,4.94756341,197.02,196.97,3.32614979]
[1761791109929,4.94756341,197.02,196.96,5.60756341]
[1761791110120,4.94756341,197.02,196.97,3.32614806]
[1761791110326,4.94756341,197.02,196.96,5.60756341]
[1761791110526,4.94756341,197.01,196.97,3.32576687]
[1761791110731,4.94756341,197.01,196.96,0.66]
[1761791110922,4.94756341,197.01,196.97,3.32562694]
[1761791111122,4.94756341,197.01,196.96,0.66]
[1761791111123,4.94756341,196.98,196.91,4.14646282]
[1761791111453,4.94756341,196.95,196.92,3.32616351]
[1761791111759,4.94756341,196.95,196.93,3.32616351]
[1761791112060,4.94756341,196.95,196.94,3.32616351]
[1761791112231,4.94756341,196.96,196.94,3.32616351]
[1761791112539,4.94756341,196.97,196.91,10.02601868]
[1761791112840,4.94756341,196.99,196.93,5.60756341]
[1761791113043,4.94756341,196.99,196.94,3.32707834]
[1761791113259,4.94756341,196.99,196.95,3.98707834]
[1761791113446,25.53956341,197.0,196.95,0.66]
[1761791114361,20.592,197.0,196.96,3.3243691]
[1761791114523,4.94756341,197.02,196.95,10.68498289]
[1761791114725,4.94756341,197.02,196.96,8.93192901]
[1761791114959,4.94756341,197.05,196.99,4.94756341]
[1761791115123,4.94756341,197.09,197.02,4.94756341]
[1761791115322,0.1,197.12,197.03,5.60756341]
[1761791115518,4.94756341,197.09,197.03,5.60756341]
[1761791115750,20.592,197.09,197.04,4.94756341]
[1761791116023,0.1,197.12,197.06,4.94756341]
[1761791116234,5.04756341,197.12,197.07,5.07433906]
[1761791116548,5.04756341,197.12,197.06,10.68215233]
[1761791116752,25.63956341,197.12,197.06,5.60756341]
[1761791116953,20.692,197.12,197.06,0.66]
[1761791117254,0.1,197.12,197.09,4.94756341]
[1761791117456,0.1,197.12,197.1,4.94756341]
[1761791117630,0.1,197.12,197.11,4.94756341]
[1761791117967,0.1,197.12,197.11,5.08972498]
[1761791118130,0.1,197.12,197.11,23.92734262]
[1761791119332,0.1,197.12,197.11,26.85584508]
[1761791119734,0.1,197.12,197.11,17.06701739]
[1761791119959,0.1,197.12,197.11,26.85584508]
[1761791121445,1e-08,197.12,197.11,26.85584508]
[1761791122642,1e-08,197.12,197.11,31.0023079]
[1761791122965,1e-08,197.12,197.11,30.98669714]
[1761791123162,1e-08,197.12,197.11,26.84984564]
[1761791123846,1e-08,197.12,197.11,19.33894913]
[1761791124166,1e-08,197.12,197.11,26.70768407]
[1761791124745,1e-08,197.12,197.11,26.20035314]
[1761791125140,1e-08,197.12,197.11,26.34251471]
[1761791125341,1e-08,197.12,197.11,26.20035314]
[1761791125651,1e-08,197.12,197.11,26.34251471]
[1761791125847,1e-08,197.12,197.11,11.33821614]
[1761791126572,1e-08,197.12,197.11,11.48037771]
[1761791127942,1e-08,197.12,197.06,4.1368515]
[1761791127943,1e-08,197.12,197.07,7.36873494]
[1761791128266,1e-08,197.12,197.07,0.66]
[1761791128267,7.36873495,197.12,197.07,0.66]
[1761791128871,7.36873495,197.12,197.08,3.31246743]
[1761791129076,7.36873494,197.11,197.05,33.0355812]
[1761791129262,1e-08,197.12,197.07,7.36873494]
[1761791129773,1e-08,197.12,197.08,0.66]
[1761791129980,1e-08,197.12,197.1,7.36873494]
[1761791130371,1e-08,197.12,197.1,8.02873494]
[1761791130869,1e-08,197.12,197.1,13.10221318]
[1761791131078,1e-08,197.12,197.1,8.02873494]
[1761791131374,1e-08,197.12,197.1,13.10225382]
[1761791131581,1e-08,197.12,197.08,7.36873494]
[1761791131794,1e-08,197.12,197.09,3.31280878]
[1761791131947,1e-08,197.12,197.07,7.36873494]
[1761791132582,1e-08,197.12,197.07,8.02873494]
[1761791132955,1e-08,197.12,197.07,13.10303021]
[1761791133289,1e-08,197.12,197.08,3.3139409]
[1761791133458,7.36873494,197.11,197.05,7.36873494]
[1761791133658,7.36873494,197.11,197.06,3.31413421]
[1761791133854,7.36873494,197.11,197.05,7.36873494]
[1761791134057,7.36873494,197.11,197.06,3.31470309]
[1761791134258,7.36873494,197.11,197.05,7.36873494]
[1761791134557,7.36873494,197.11,197.06,3.31468317]
[1761791134751,7.36873494,197.11,197.05,12.44345977]
[1761791134952,7.36873494,197.11,197.06,3.31365356]
[1761791135177,7.36873494,197.11,197.05,7.36873494]
[1761791135376,7.36873494,197.11,197.06,3.31397373]
[1761791135575,7.36873494,197.11,197.05,12.44357225]
[1761791135779,7.36873494,197.11,197.06,3.31397373]
[1761791135954,7.36873494,197.11,197.05,12.44357225]
[1761791136153,7.36873494,197.11,197.06,3.31397344]
[1761791136447,7.36873494,197.11,197.05,12.44357225]
[1761791136652,7.36873494,197.11,197.06,8.38878035]
[1761791136852,1e-08,197.12,197.07,7.36873494]
[1761791137266,1e-08,197.12,197.08,7.36873494]
[1761791137464,1e-08,197.12,197.11,7.36873494]
[1761791137680,1e-08,197.12,197.11,8.02873494]
[1761791138261,1e-08,197.12,197.1,7.36873494]
[1761791138775,1e-08,197.12,197.1,13.10210392]
[1761791139179,1e-08,197.12,197.1,8.02873494]
[1761791139575,1e-08,197.12,197.1,13.10226625]
[1761791140666,1e-08,197.12,197.11,7.36873494]
[1761791140982,1e-08,197.12,197.11,13.10204425]
[1761791142283,1e-08,197.12,197.11,16.55664469]
[1761791142580,1e-08,197.12,197.11,11.48333538]
[1761791142768,1e-08,197.12,197.11,16.55664469]
[1761791142990,1e-08,197.12,197.11,37.14864469]
[1761791143170,1e-08,197.12,197.11,23.90443887]
[1761791143372,1e-08,197.12,197.11,37.00648312]
[1761791143578,1e-08,197.12,197.11,37.14864469]
[1761791143766,1e-08,197.12,197.11,29.77990975]
[1761791143970,1e-08,197.12,197.11,37.14864469]
[1761791145061,1e-08,197.12,197.11,29.77990975]
[1761791145261,1e-08,197.12,197.11,37.14864469]
[1761791147190,1e-08,197.12,197.11,16.55664469]
[1761791150891,1e-08,197.12,197.11,3.31243887]
[1761791153176,1e-08,197.12,197.11,16.47448312]
[1761791154599,1e-08,197.12,197.11,16.61664469]
[1761791157203,1e-08,197.12,197.11,20.75349619]
[1761791157775,1e-08,197.12,197.11,3.31243887]
[1761791158088,1e-08,197.12,197.11,8.38574818]
[1761791158285,1e-08,197.12,197.11,3.31243887]
[1761791159281,1e-08,197.12,197.11,7.44929037]
[1761791160177,1e-08,197.12,197.11,3.31243887]
[1761791160600,7.36873495,197.12,197.11,3.31243887]
[1761791161291,3.09541993,197.12,197.11,3.31243887]
[1761791161675,3.09541993,197.12,197.05,4.17105746]
[1761791161676,17.95729956,197.12,197.05,4.17105746]
[1761791161895,20.592,197.09,197.06,3.34094183]
[1761791162075,20.592,197.09,197.07,3.34094183]
[1761791162276,20.592,197.09,197.02,4.17105746]
[1761791162476,20.592,197.09,197.03,3.33939042]
[1761791162676,20.592,197.09,197.04,3.33939042]
[1761791162903,20.592,197.09,197.05,3.33939042]
[1761791163079,20.592,197.09,197.06,3.33939042]
[1761791163398,20.592,197.09,197.01,4.17105746]
[1761791163611,20.592,197.07,197.02,3.3369171]
[1761791163792,20.592,197.07,197.03,3.3369171]
[1761791163987,20.592,197.07,197.04,3.3369171]
[1761791164196,20.592,197.06,197.05,3.3369171]
[1761791164389,27.9741442,197.06,197.05,3.3369171]
[1761791164910,20.592,197.06,197.05,3.3369171]
[1761791165390,7.3821442,197.07,197.05,3.3369171]
[1761791165585,7.3821442,197.07,197.06,3.3369171]
[1761791166011,12.45648326,197.07,197.0,4.17105746]
[1761791166186,7.3821442,197.03,197.01,3.33502018]
[1761791166507,33.27670934,197.09,197.02,3.33502018]
[1761791166508,20.592,197.09,197.02,3.33502018]
[1761791166690,20.592,197.09,197.0,4.17105746]
[1761791166691,7.3821442,197.05,197.03,3.33502018]
[1761791166889,7.3821442,197.06,197.04,3.33502018]
[1761791167102,7.3821442,197.06,197.05,3.33502018]
[1761791167792,7.3821442,197.06,197.0,13.17818931]
[1761791168007,7.3821442,197.05,197.01,3.33136255]
[1761791168198,7.3821442,197.05,197.02,3.33136255]
[1761791168405,7.3821442,197.05,197.03,3.33136255]
[1761791168705,7.3821442,197.05,197.04,3.33136255]
[1761791169099,20.592,197.09,197.04,3.33136255]
[1761791169278,7.3821442,197.07,197.05,3.33136255]
[1761791169478,7.3821442,197.06,197.01,0.72]
[1761791169678,7.3821442,197.05,197.02,3.33038581]
[1761791169886,7.3821442,197.05,197.03,3.33038581]
[1761791170093,7.3821442,197.05,197.04,3.33038581]
[1761791170579,103.4,197.08,197.04,3.33038581]
[1761791170780,7.3821442,197.06,197.01,5.07585699]
[1761791171002,7.3821442,197.06,197.02,3.33057951]
[1761791171205,7.3821442,197.06,197.03,3.33057951]
[1761791171481,7.3821442,197.05,197.04,3.33057951]
[1761791171910,7.3821442,197.06,197.04,3.33057951]
[1761791172109,7.3821442,197.07,197.05,3.32887619]
[1761791172290,7.3821442,197.07,197.06,3.32793768]
[1761791172482,7.3821442,197.07,197.02,0.72]
[1761791172684,103.4,197.08,197.03,3.32808157]
[1761791172985,103.4,197.08,197.02,0.72]
[1761791172986,7.3821442,197.11,197.05,12.45699829]
[1761791173200,7.3821442,197.11,197.06,3.32808157]
[1761791173401,7.3821442,197.11,197.05,12.45699829]
[1761791173402,7.3821442,197.11,197.07,3.32808157]
[1761791173601,7.3821442,197.11,197.08,3.32519134]
[1761791173796,7.3821442,197.11,197.09,3.32519134]
[1761791174112,7.3821442,197.11,197.05,12.45699829]
[1761791174309,7.3821442,197.11,197.06,3.32510684]
[1761791174489,7.3821442,197.11,197.07,3.32510684]
[1761791174691,7.3821442,197.11,197.08,3.32510684]
[1761791174893,7.3821442,197.11,197.05,12.45699829]
[1761791175207,7.3821442,197.11,197.06,3.32523299]
[1761791175407,7.3821442,197.1,197.07,3.32523299]